bitfinex/quotes_SOLUSD_20250626
["timestamp","ask_amount","ask_price","bid_price","bid_amount"]
[1750940986199,5.20662727,143.35,143.32,0.02]
[1750940986403,5.20662727,143.34,143.32,0.02]
[1750940986702,12.18216415,143.36,143.32,0.02]
[1750940986894,5.20662727,143.35,143.32,0.02]
[1750940987100,5.20662727,143.34,143.32,0.02]
[1750940987288,5.20662727,143.35,143.32,0.02]
[1750940987489,5.20662727,143.34,143.32,0.02]
[1750940987703,5.20662727,143.35,143.32,0.02]
[1750940988002,5.20662727,143.34,143.32,0.02]
[1750940988204,5.20662727,143.36,143.32,0.02]
[1750940988392,5.20662727,143.35,143.32,0.02]
[1750940988583,5.20662727,143.34,143.32,0.02]
[1750940988784,15.81754427,143.36,143.32,0.02]
[1750940989080,5.20662727,143.35,143.32,0.02]
[1750940990185,5.20662727,143.34,143.32,0.02]
[1750940990386,5.20662727,143.35,143.32,0.02]
[1750940990585,5.20662727,143.34,143.32,0.02]
[1750940990787,5.20662727,143.35,143.32,0.02]
[1750940991007,5.20662727,143.34,143.32,0.02]
[1750940991188,5.20662727,143.35,143.32,0.02]
[1750940992010,5.20662727,143.34,143.32,0.02]
[1750940992202,5.20662727,143.35,143.32,0.02]
[1750940999096,5.20662727,143.37,143.34,1.5846]
[1750940999290,5.20662727,143.39,143.34,1.5846]
[1750940999616,5.20662727,143.38,143.34,1.5846]
[1750941000713,5.20662727,143.4,143.34,8.56100884]
[1750941000890,5.20662727,143.41,143.36,18.64964886]
[1750941001091,5.20662727,143.4,143.36,18.64964886]
[1750941001307,5.20662727,143.42,143.36,18.64964886]
[1750941001510,5.20662727,143.41,143.36,18.64964886]
[1750941001718,12.17921743,143.42,143.36,18.64964886]
[1750941002015,5.20662727,143.41,143.36,18.64964886]
[1750941002216,5.20662727,143.42,143.36,25.62493991]
[1750941002395,5.20662727,143.43,143.36,25.62493991]
[1750941002588,5.20662727,143.42,143.36,18.64964886]
[1750941002794,5.20662727,143.41,143.36,18.64964886]
[1750941003009,5.20662727,143.42,143.36,18.64964886]
[1750941003521,5.20662727,143.41,143.36,18.64964886]
[1750941003689,5.20662727,143.42,143.36,25.62501267]
[1750941003890,5.20662727,143.43,143.36,25.62501267]
[1750941004116,5.20662727,143.42,143.36,25.62501267]
[1750941004300,5.20662727,143.43,143.36,25.62501267]
[1750941004504,5.20662727,143.42,143.36,25.62501267]
[1750941004703,5.20662727,143.43,143.36,25.62501267]
[1750941004890,5.20662727,143.42,143.36,25.62501267]
[1750941005090,5.20662727,143.43,143.36,25.62501267]
[1750941005302,5.20662727,143.42,143.36,25.62501267]
[1750941005502,5.20662727,143.43,143.36,25.62501267]
[1750941005820,5.20662727,143.42,143.36,25.62501267]
[1750941006021,5.20662727,143.43,143.36,25.62501267]
[1750941006720,12.17838524,143.44,143.36,18.64964886]
[1750941006903,5.20662727,143.43,143.36,18.64964886]
[1750941007917,5.20662727,143.43,143.36,25.62509459]
[1750941008209,8.87995426,143.45,143.38,18.64964886]
[1750941008414,3.67332699,143.45,143.38,18.64964886]
[1750941009004,5.20662727,143.44,143.38,18.64964886]
[1750941009201,8.87995426,143.45,143.38,18.64964886]
[1750941009396,0.14216157,143.44,143.38,18.64964886]
[1750941009601,5.34878884,143.44,143.38,18.64964886]
[1750941010214,7.11380795,143.44,143.38,18.64964886]
[1750941013517,7.11380795,143.44,143.37,1.6535]
[1750941013701,5.20662727,143.43,143.37,1.6535]
[1750941014508,6.97252823,143.42,143.37,1.6535]
[1750941015025,5.20662727,143.43,143.38,18.64964886]
[1750941015229,12.17867989,143.43,143.38,18.64964886]
[1750941015598,12.17867989,143.43,143.37,1.6535]
[1750941015818,6.97205262,143.43,143.37,1.6535]
[1750941016607,0.14216157,143.42,143.37,1.6535]
[1750941017116,0.14216157,143.42,143.35,6.2233]
[1750941017316,0.14216157,143.4,143.35,6.2233]
[1750941017531,0.14216157,143.4,143.34,1.5627]
[1750941018902,7.11610497,143.4,143.34,1.5627]
[1750941019636,12.32273224,143.4,143.32,25.25784886]
[1750941019961,12.32273224,143.4,143.32,0.02]
[1750941019962,5.20662727,143.39,143.32,0.02]
[1750941020230,5.34878884,143.38,143.32,0.02]
[1750941020441,0.14216157,143.36,143.32,0.02]
[1750941020733,5.20662727,143.35,143.32,0.02]
[1750941021043,0.14216157,143.34,143.32,0.02]
[1750941021508,3.77831103,143.34,143.32,0.02]
[1750941022407,3.63614946,143.34,143.32,0.02]
[1750941024848,11.65657165,143.39,143.34,18.64964886]
[1750941025125,3.63565957,143.35,143.32,0.02]
[1750941025519,0.14216157,143.37,143.32,0.02]
[1750941025709,3.63606051,143.35,143.32,0.02]
[1750941026545,10.61242877,143.35,143.32,0.02]
[1750941029247,0.14216157,143.34,143.32,0.02]
[1750941029982,6.97690643,143.33,143.32,0.02]
[1750941031651,7.119068,143.33,143.32,0.02]
[1750941036677,3.63606051,143.35,143.32,0.02]
[1750941036975,10.61222371,143.35,143.32,0.02]
[1750941047970,0.14216157,143.34,143.32,0.02]
[1750941048574,7.11893986,143.34,143.32,0.02]
[1750941054683,18.79181043,143.33,143.32,0.02]
[1750941054998,25.76871686,143.33,143.32,0.02]
[1750941055285,29.40609773,143.33,143.32,0.02]
[1750941056390,44.58679624,143.33,143.32,0.02]
[1750941056709,51.06266938,143.33,143.32,0.02]
[1750941057078,28.79181043,143.3,143.29,0.02]
[1750941058398,35.77017749,143.3,143.29,0.02]
[1750941058680,40.950876,143.3,143.29,0.02]
[1750941059293,28.79181043,143.29,143.28,0.02]
[1750941059485,35.13120894,143.29,143.28,0.02]
[1750941059786,18.79181043,143.26,143.18,1.65]
[1750941060020,23.97250894,143.25,143.18,1.65]
[1750941060386,30.95331173,143.25,143.18,1.65]
[1750941060978,30.95331173,143.25,143.15,1.5663]
[1750941061809,49.57141564,143.25,143.18,0.02]
[1750941062015,49.15731173,143.25,143.18,0.02]
[1750941064113,57.73792965,143.25,143.18,0.02]
[1750941064795,18.64964886,143.21,143.18,0.02]
[1750941065108,0.14216157,143.2,143.18,0.02]
[1750941065821,6.43526619,143.22,143.18,0.02]
[1750941066109,18.649649,143.24,143.18,18.66964886]
[1750941066311,5.18069851,143.28,143.18,18.66964886]
[1750941066510,5.18069851,143.28,143.2,18.64964886]
[1750941066511,6.97982829,143.27,143.2,18.64964886]
[1750941066818,0.14216157,143.26,143.2,18.64964886]
[1750941067003,6.97982829,143.27,143.2,18.64964886]
[1750941067207,0.14216157,143.26,143.2,18.64964886]
[1750941067687,6.97982829,143.27,143.2,18.64964886]
[1750941068014,0.14216157,143.26,143.2,18.64964886]
[1750941068724,7.12266641,143.26,143.19,7.9264]
[1750941069023,0.14216157,143.26,143.19,7.9264]
[1750941069398,7.12258478,143.26,143.19,7.9264]
[1750941071007,6.97999104,143.27,143.2,18.64964886]
[1750941071214,6.43526619,143.31,143.22,18.64964886]
[1750941071215,5.18069851,143.31,143.22,18.64964886]
[1750941071425,6.97788012,143.31,143.23,6.6358]
[1750941071807,10.61474494,143.33,143.25,1.5624]
[1750941072537,10.61474494,143.33,143.26,18.64964886]
[1750941073022,3.63738087,143.33,143.26,18.64964886]
[1750941073527,10.61430876,143.33,143.26,18.64964886]
[1750941075308,10.61430876,143.33,143.27,6.6057]
[1750941075502,3.63738087,143.33,143.28,18.64964886]
[1750941075722,3.63738087,143.33,143.29,1.5415]
[1750941078426,10.61432417,143.33,143.29,1.5415]
[1750941078929,0.14216157,143.32,143.25,1.626]
[1750941079130,0.14216157,143.3,143.25,1.626]
[1750941079529,3.63796493,143.29,143.25,1.626]
[1750941080312,6.97934115,143.28,143.25,1.626]
[1750941082611,0.14216157,143.27,143.25,1.626]
[1750941082812,0.14216157,143.27,143.23,6.3698]
[1750941083119,0.14216157,143.27,143.21,1.5801]
[1750941084926,0.14216157,143.25,143.21,1.5801]
[1750941085921,0.14216157,143.23,143.21,1.5801]
[1750941086316,0.14216157,143.23,143.18,0.02]
[1750941086722,13.2138647,143.27,143.18,0.02]
[1750941086723,0.14216157,143.25,143.18,0.02]
[1750941087124,6.98031551,143.26,143.18,0.02]
[1750941087935,0.14216157,143.28,143.18,0.02]
[1750941087936,6.97982829,143.27,143.18,18.66964886]
[1750941088127,10.61699476,143.29,143.22,18.64964886]
[1750941088843,0.14216157,143.28,143.22,18.64964886]
[1750941089247,6.97982829,143.27,143.22,18.64964886]
[1750941090630,6.97982829,143.27,143.21,1.6311]
[1750941090823,0.14216157,143.26,143.21,1.6311]
[1750941091234,6.98080279,143.25,143.21,1.6311]
[1750941094336,0.14216157,143.28,143.21,1.6311]
[1750941094536,10.61701333,143.29,143.22,18.64964886]
[1750941094923,3.63796493,143.29,143.23,26.77942398]
[1750941095129,6.97690643,143.33,143.25,18.98202398]
[1750941095438,6.97690643,143.33,143.23,6.2228]
[1750941095439,10.61299087,143.33,143.26,1.5746]
[1750941095631,0.14216157,143.32,143.26,1.5746]
[1750941097036,0.14216157,143.3,143.26,1.5746]
[1750941097845,0.14216157,143.3,143.24,18.64964886]
[1750941099353,6.97885407,143.29,143.23,6.2228]
[1750941099556,6.97885407,143.29,143.23,24.87244886]
[1750941099959,6.97885407,143.29,143.24,18.64964886]
[1750941100428,6.97842077,143.3,143.24,18.64964886]
[1750941100629,6.97739324,143.32,143.24,18.64964886]
[1750941100856,15.79387599,143.33,143.24,37.63167284]
[1750941101057,3.63608444,143.33,143.26,37.63167284]
[1750941101234,3.63608444,143.33,143.29,18.64964886]
[1750941101648,3.63608444,143.33,143.28,6.2734]
[1750941101846,3.63608444,143.33,143.29,18.64964886]
[1750941103038,10.61318386,143.33,143.29,18.64964886]
[1750941103244,3.63608444,143.33,143.29,18.64964886]
[1750941103441,10.61306413,143.33,143.25,1.5426]
[1750941103646,10.61306413,143.33,143.26,18.64964886]
[1750941104259,3.63608444,143.33,143.26,18.64964886]
[1750941105550,3.63608444,143.33,143.26,25.6297436]
[1750941105765,3.63608444,143.33,143.26,44.61176758]
[1750941105962,3.63608444,143.33,143.26,37.63167284]
[1750941106177,3.63608444,143.33,143.28,18.64964886]
[1750941106760,5.1988461,143.39,143.28,18.64964886]
[1750941106761,5.1988461,143.39,143.29,26.71842398]
[1750941106963,0.04,143.39,143.29,7.7364]
[1750941107271,10.61018239,143.37,143.3,18.64964886]
[1750941108457,0.14216157,143.36,143.29,7.7364]
[1750941108660,0.14216157,143.36,143.29,1.6058]
[1750941109151,0.14216157,143.36,143.25,26.86974886]
[1750941109352,0.14216157,143.34,143.25,26.86974886]
[1750941109536,0.14216157,143.34,143.25,33.85052957]
[1750941109957,0.14216157,143.34,143.25,52.83255355]
[1750941111058,7.11864448,143.34,143.25,52.83255355]
[1750941111369,7.11864448,143.34,143.25,33.70974886]
[1750941111554,7.11864448,143.34,143.25,40.69053257]
[1750941111762,7.11864448,143.34,143.25,33.70974886]
[1750941113269,7.11864448,143.34,143.25,15.0601]
[1750941113442,7.11864448,143.34,143.26,18.64964886]
[1750941114669,24.55969373,143.34,143.25,8.4486]
[1750941115065,7.11864448,143.34,143.26,18.64964886]
[1750941115366,24.55969373,143.34,143.25,8.4486]
[1750941115955,36.16709746,143.34,143.25,8.4486]
[1750941117245,36.16709746,143.34,143.24,18.64964886]
[1750941120772,36.16709746,143.34,143.23,18.64964886]
[1750941120968,0.14216157,143.32,143.21,18.64964886]
[1750941121169,29.7,143.31,143.21,18.64964886]
[1750941121365,34.8588461,143.31,143.21,18.64964886]
[1750941121553,0.14216157,143.29,143.21,18.64964886]
[1750941121758,8.10646157,143.29,143.21,18.64964886]
[1750941121976,8.10646157,143.29,143.2,8.3805]
[1750941122281,8.10646157,143.29,143.2,6.84]
[1750941122789,24.42769402,143.28,143.2,6.84]
[1750941123366,24.42769402,143.28,143.19,18.64964886]
[1750941123564,24.42769402,143.28,143.18,0.02]
[1750941123565,0.14216157,143.27,143.18,0.02]
[1750941124888,0.14216157,143.25,143.18,0.02]
[1750941125390,6.98031551,143.26,143.18,0.02]
[1750941125593,12.28094197,143.27,143.18,19.00202398]
[1750941125767,7.12209587,143.27,143.18,19.00202398]
[1750941126171,7.9643,143.29,143.18,19.00202398]
[1750941126172,14.94360789,143.29,143.19,18.98202398]
[1750941126682,20.10245399,143.29,143.18,0.02]
[1750941126980,6.97982829,143.27,143.2,18.64964886]
[1750941127361,3.63742988,143.26,143.2,18.64964886]
[1750941128371,3.63742988,143.26,143.2,18.98202398]
[1750941128555,3.63742988,143.26,143.19,6.98347746]
[1750941128762,3.63742988,143.26,143.19,18.64964886]
[1750941129566,3.63742988,143.26,143.19,18.98202398]
[1750941129788,10.61785282,143.26,143.19,18.98202398]
[1750941130172,10.61785282,143.26,143.18,7.00398466]
[1750941130363,10.61785282,143.26,143.19,18.98202398]
[1750941130782,3.63742988,143.26,143.19,18.98202398]
[1750941131893,3.63742988,143.26,143.18,25.98600864]
[1750941131894,10.61780548,143.26,143.18,25.98600864]
[1750941134480,10.61780548,143.26,143.18,0.02]
[1750941135069,3.63742988,143.26,143.21,18.64964886]
[1750941135892,3.63742988,143.26,143.2,18.64964886]
[1750941136400,3.63742988,143.26,143.2,18.98202398]
[1750941136597,3.63742988,143.26,143.2,18.64964886]
[1750941136801,3.63742988,143.26,143.2,37.63167284]
[1750941136968,3.63742988,143.26,143.2,18.64964886]
[1750941137297,11.60119074,143.29,143.21,18.98202398]
[1750941137469,18.5801397,143.29,143.21,18.98202398]
[1750941137669,11.60119074,143.29,143.21,18.98202398]
[1750941138586,11.60119074,143.29,143.21,6.9827526]
[1750941138777,11.60119074,143.29,143.21,25.96477658]
[1750941141203,18.58007344,143.29,143.21,6.9827526]
[1750941141396,18.58007344,143.29,143.2,32.47265064]
[1750941141781,18.58007344,143.29,143.2,25.48964886]
[1750941142096,0.14216157,143.28,143.18,0.02]
[1750941142302,18.79181043,143.26,143.18,0.02]
[1750941142625,6.44855763,143.23,143.18,0.02]
[1750941142802,0.14216157,143.21,143.18,0.02]
[1750941143484,0.14216157,143.19,143.18,0.02]
[1750941143984,6.1522,143.2,143.18,0.02]
[1750941144486,11.7495653,143.24,143.18,0.02]
[1750941144795,6.2991,143.24,143.18,0.02]
[1750941145384,6.6891461,143.25,143.18,0.02]
[1750941145705,1.5303,143.25,143.19,18.64964886]
[1750941145874,1.5303,143.25,143.18,18.66964886]
[1750941146073,11.2884461,143.27,143.18,37.65167284]
[1750941146271,6.1296,143.27,143.18,37.65167284]
[1750941146498,6.1296,143.27,143.18,18.66964886]
[1750941146798,0.14216157,143.26,143.18,18.66964886]
[1750941147096,11.2884461,143.27,143.18,25.65370834]
[1750941147401,11.2884461,143.27,143.18,44.63573232]
[1750941147977,6.1296,143.27,143.19,18.98202398]
[1750941148399,13.1096514,143.27,143.19,18.98202398]
[1750941148699,0.14216157,143.26,143.18,0.02]
[1750941149000,6.98080279,143.25,143.18,0.02]
[1750941153800,7.12268423,143.26,143.18,19.00202398]
[1750941154098,6.1296,143.27,143.19,18.98202398]
[1750941154397,5.1588461,143.28,143.23,18.64964886]
[1750941154580,3.63689074,143.29,143.23,37.63167284]
[1750941154780,3.63689074,143.29,143.23,18.64964886]
[1750941155186,3.63689074,143.29,143.23,25.63137883]
[1750941156084,3.63689074,143.29,143.23,18.64964886]
[1750941156279,3.63689074,143.29,143.23,25.63125367]
[1750941156484,3.63689074,143.29,143.23,44.61327765]
[1750941156686,3.63689074,143.29,143.23,25.63135747]
[1750941156879,5.1988461,143.33,143.26,18.64964886]
[1750941157084,0.04,143.33,143.26,18.98202398]
[1750941157701,0.04,143.33,143.25,18.98202398]
[1750941157904,0.04,143.33,143.24,18.64964886]
[1750941158101,0.04,143.33,143.25,18.98202398]
[1750941158911,0.04,143.33,143.22,8.0692]
[1750941158912,0.14216157,143.32,143.22,27.05122398]
[1750941159092,0.14216157,143.32,143.23,18.64964886]
[1750941160111,5.30100767,143.32,143.2,6.82]
[1750941160290,11.7495653,143.32,143.21,18.64964886]
[1750941160490,5.1588461,143.31,143.21,18.64964886]
[1750941161218,0.14216157,143.29,143.21,18.64964886]
[1750941162205,0.14216157,143.29,143.2,18.64964886]
[1750941162718,0.14216157,143.29,143.2,37.63167284]
[1750941163218,0.14216157,143.3,143.21,18.98202398]
[1750941163421,0.14216157,143.3,143.21,25.96458228]
[1750941164113,12.1369184,143.31,143.22,18.98202398]
[1750941164514,12.1369184,143.31,143.24,18.64964886]
[1750941164515,5.1588461,143.31,143.24,18.64964886]
[1750941164717,0.14216157,143.31,143.24,18.64964886]
[1750941165301,7.12011732,143.31,143.22,18.98202398]
[1750941165616,6.97795575,143.31,143.22,18.98202398]
[1750941166617,6.97795575,143.31,143.22,25.96409656]
[1750941166795,6.97795575,143.31,143.2,0.14216157]
[1750941166796,0.14216157,143.3,143.2,37.63167284]
[1750941167203,0.14216157,143.3,143.21,18.98202398]
[1750941167922,6.97885407,143.29,143.21,25.9647749]
[1750941169126,6.97788012,143.31,143.22,37.63167284]
[1750941169810,6.97788012,143.31,143.21,25.9647749]
[1750941169811,0.14216157,143.3,143.21,25.9647749]
[1750941170414,7.12095148,143.3,143.21,25.9647749]
[1750941170834,22.60233412,143.32,143.21,25.9647749]
[1750941170835,12.17580983,143.33,143.22,18.64964886]
[1750941171018,7.01696373,143.33,143.25,37.63167284]
[1750941172221,0.04,143.33,143.27,18.64964886]
[1750941172523,0.04,143.33,143.28,18.98202398]
[1750941173025,0.04,143.33,143.27,18.98202398]
[1750941173534,0.04,143.33,143.28,18.98202398]
[1750941173712,0.04,143.33,143.29,18.98202398]
[1750941174102,0.04,143.33,143.3,18.64964886]
[1750941174404,0.04,143.33,143.3,18.98202398]
[1750941174906,0.04,143.33,143.3,18.64964886]
[1750941176026,0.04,143.33,143.3,44.60969571]
[1750941176232,0.04,143.33,143.32,18.64964886]
[1750941176718,0.04,143.33,143.32,18.98202398]
[1750941177116,0.04,143.33,143.31,18.64964886]
[1750941177323,0.04,143.33,143.32,18.98202398]
[1750941179335,0.04,143.33,143.31,18.64964886]
[1750941180511,0.04,143.33,143.31,27.24850192]
[1750941180717,0.04,143.33,143.31,18.64964886]
[1750941182136,0.04,143.33,143.31,34.22638121]
[1750941182335,0.04,143.33,143.32,8.59885306]
[1750941183219,0.04,143.33,143.31,18.64964886]
[1750941183621,0.04,143.33,143.32,8.59885306]
[1750941183925,0.04,143.33,143.31,25.62748101]
[1750941183926,0.04,143.33,143.31,26.32526902]
[1750941184121,0.04,143.33,143.31,25.62748101]
[1750941188519,0.04,143.33,143.32,0.14216157]
[1750941189118,0.04,143.33,143.32,33.68526349]
[1750941190263,0.04,143.33,143.32,40.66265673]
[1750941192938,0.04,143.35,143.34,46.41991043]
[1750941193248,0.04,143.35,143.34,111.74455448]
[1750941193748,0.04,143.35,143.34,118.72097418]
[1750941194524,0.04,143.35,143.34,118.02333221]
[1750941194944,0.04,143.35,143.34,83.41881251]
[1750941195121,0.04,143.35,143.34,74.67779788]
[1750941195315,0.04,143.35,143.34,67.81779788]
[1750941195521,0.04,143.35,143.34,83.27665094]
[1750941196044,0.04,143.35,143.34,90.39523221]
[1750941197446,0.04,143.35,143.34,81.79637915]
[1750941197645,0.04,143.35,143.34,90.39523221]
[1750941202222,0.04,143.35,143.34,87.52580503]
[1750941202726,0.04,143.35,143.34,80.40722376]
[1750941202933,0.04,143.35,143.34,74.67779788]
[1750941203347,0.04,143.35,143.34,80.40722376]
[1750941204055,0.04,143.35,143.34,87.52580503]
[1750941204971,0.04,143.35,143.34,81.79637915]
[1750941205132,0.04,143.35,143.34,87.52580503]
[1750941206357,0.04,143.39,143.37,44.64964886]
[1750941206549,0.04,143.39,143.38,44.79181043]
[1750941206745,0.04,143.39,143.38,50.52123631]
[1750941207658,0.04,143.39,143.38,80.28123631]
[1750941207947,0.04,143.39,143.38,81.82973631]
[1750941208147,0.04,143.39,143.38,88.80420973]
[1750941209570,0.04,143.39,143.38,83.07478385]
[1750941209739,0.04,143.39,143.38,59.04420973]
[1750941210335,0.04,143.39,143.38,57.35354816]
[1750941210669,0.04,143.39,143.38,44.64964886]
[1750941210875,0.04,143.39,143.38,57.49570973]
[1750941212055,0.04,143.39,143.38,87.39570973]
[1750941212259,0.04,143.39,143.38,81.66628385]
[1750941212467,0.04,143.39,143.38,87.39570973]
[1750941212643,0.04,143.4,143.38,87.39570973]
[1750941212644,0.04,143.4,143.39,18.79181043]
[1750941212960,0.04,143.4,143.39,25.50295815]
[1750941214452,0.04,143.4,143.39,40.33944517]
[1750941215062,0.04,143.4,143.39,34.32569615]
[1750941215251,0.04,143.4,143.39,40.05512203]
[1750941216938,0.04,143.4,143.39,34.32569615]
[1750941217136,0.04,143.4,143.39,32.19262203]
[1750941219266,0.04,143.4,143.39,31.49522333]
[1750941219656,0.04,143.4,143.39,25.76579745]
[1750941219863,0.04,143.4,143.39,18.64964886]
[1750941220172,0.04,143.4,143.39,25.62363588]
[1750941220737,0.04,143.4,143.39,31.49522333]
[1750941222770,0.04,143.4,143.39,57.49522333]
[1750941224259,0.04,143.4,143.39,60.35004292]
[1750941226174,0.04,143.4,143.39,51.76579745]
[1750941226359,0.04,143.4,143.39,60.35004292]
[1750941227384,0.04,143.4,143.39,90.57004292]
[1750941228191,0.04,143.4,143.39,81.98579745]
[1750941228352,0.04,143.4,143.39,90.57004292]
[1750941228553,0.04,143.4,143.39,81.98579745]
[1750941228752,0.04,143.4,143.39,60.35004292]
[1750941229590,0.04,143.4,143.39,41.34788135]
[1750941229801,0.04,143.4,143.39,41.49004292]
[1750941230365,0.04,143.4,143.39,41.34788135]
[1750941230868,0.04,143.4,143.39,41.49004292]
[1750941234896,0.04,143.4,143.39,32.90579745]
[1750941235075,0.04,143.4,143.39,41.49004292]
[1750941237397,0.04,143.4,143.39,32.90579745]
[1750941237696,0.04,143.4,143.39,41.49004292]
[1750941238008,0.04,143.4,143.39,32.90579745]
[1750941238510,0.04,143.4,143.39,32.76363588]
[1750941238686,0.04,143.4,143.34,56.30814902]
[1750941238890,1.6401,143.38,143.34,56.30814902]
[1750941239087,1.6401,143.38,143.34,63.28440565]
[1750941239806,1.6401,143.38,143.35,18.64964886]
[1750941240772,6.2614,143.37,143.34,49.16814902]
[1750941242784,13.23657312,143.37,143.34,49.16814902]
[1750941243897,13.23657312,143.37,143.34,47.50154902]
[1750941244100,1.1387,143.36,143.34,47.50154902]
[1750941247909,8.11431993,143.36,143.34,47.50154902]
[1750941248892,7.1180946,143.35,143.34,46.25822464]
[1750941249191,7.1180946,143.35,143.32,0.02]
[1750941249192,0.14216157,143.33,143.32,0.02]
[1750941249500,6.1596,143.34,143.32,0.02]
[1750941250284,0.14216157,143.33,143.32,0.02]
[1750941250600,4.1674,143.32,143.29,0.02]
[1750941250792,6.97836706,143.3,143.27,0.02]
[1750941250992,0.14216157,143.29,143.27,0.02]
[1750941251607,0.14216157,143.31,143.27,0.02]
[1750941251906,6.3899,143.32,143.27,0.02]
[1750941253110,30.68,143.33,143.27,27.25389433]
[1750941253296,3.63611993,143.34,143.29,8.58424547]
[1750941253488,6.2443,143.36,143.29,8.58424547]
[1750941254407,3.63489615,143.38,143.31,18.64964886]
[1750941254593,3.63489615,143.38,143.31,8.58424547]
[1750941254791,3.63489615,143.38,143.31,18.64964886]
[1750941255005,3.63489615,143.38,143.32,27.23389433]
[1750941255580,3.63489615,143.38,143.32,18.64964886]
[1750941255786,3.63489615,143.38,143.32,27.23389433]
[1750941256087,3.63489615,143.38,143.32,18.64964886]
[1750941256408,6.4725,143.4,143.34,18.64964886]
[1750941256595,6.4725,143.4,143.33,18.64964886]
[1750941256986,13.44600616,143.4,143.32,18.64964886]
[1750941259605,0.14216157,143.39,143.32,18.64964886]
[1750941260391,0.14216157,143.39,143.3,18.64964886]
[1750941260822,0.14216157,143.39,143.28,20.27165178]
[1750941260997,0.14216157,143.36,143.29,18.64964886]
[1750941261512,0.14216157,143.36,143.27,0.02]
[1750941262609,0.14216157,143.36,143.28,18.64964886]
[1750941263324,6.97593303,143.35,143.28,18.64964886]
[1750941263621,37.55492426,143.38,143.28,25.62895087]
[1750941263797,0.14216157,143.37,143.28,25.62895087]
[1750941264732,7.11748467,143.37,143.28,25.62895087]
[1750941266294,6.4725,143.4,143.29,27.23389433]
[1750941266490,6.4725,143.4,143.32,8.58424547]
[1750941266798,6.4725,143.4,143.32,18.64964886]
[1750941267202,6.4725,143.4,143.32,8.58424547]
[1750941267517,6.4725,143.4,143.32,27.23389433]
[1750941268594,13.44611982,143.4,143.32,34.21111536]
[1750941269415,6.4725,143.4,143.32,34.21111536]
[1750941269600,6.4725,143.4,143.33,27.23389433]
[1750941270202,0.04,143.4,143.35,18.64964886]
[1750941270618,0.04,143.4,143.33,25.62639162]
[1750941271522,0.04,143.4,143.33,34.21063709]
[1750941271720,0.04,143.4,143.34,8.58424547]
[1750941271922,0.04,143.4,143.35,18.64964886]
[1750941272292,0.04,143.4,143.34,18.64964886]
[1750941272498,0.04,143.4,143.39,34.20788135]
[1750941272694,0.04,143.4,143.39,42.46744162]
[1750941273316,0.04,143.4,143.35,17.58194024]
[1750941273529,0.04,143.4,143.36,18.64964886]
[1750941273704,0.04,143.4,143.37,8.58424547]
[1750941274223,0.04,143.4,143.39,27.23389433]
[1750941274611,0.04,143.4,143.39,25.62363588]
[1750941274923,0.04,143.4,143.39,34.20788135]
[1750941275122,0.04,143.4,143.37,8.72640704]
[1750941275299,0.04,143.4,143.37,15.70124423]
[1750941275616,0.04,143.4,143.39,18.64964886]
[1750941277210,0.04,143.4,143.39,25.62363588]
[1750941277410,0.04,143.4,143.39,35.04744162]
[1750941278202,0.04,143.41,143.4,0.14216157]
[1750941278517,0.04,143.41,143.4,27.3760559]
[1750941279304,0.04,143.41,143.4,25.76531112]
[1750941279608,0.04,143.41,143.4,34.34955659]
[1750941280930,0.04,143.41,143.4,18.64964886]
[1750941281135,0.04,143.41,143.4,34.20739502]
[1750941281628,0.04,143.41,143.4,18.64964886]
[1750941283004,0.04,143.41,143.4,25.62314955]
[1750941283534,0.04,143.41,143.4,34.34955659]
[1750941283827,0.04,143.41,143.4,25.76531112]
[1750941284038,0.04,143.41,143.4,18.64964886]
[1750941284335,0.04,143.41,143.4,25.62314955]
[1750941285931,0.04,143.41,143.4,18.64964886]
[1750941295118,0.04,143.41,143.4,25.62314955]
[1750941295542,0.04,143.41,143.4,34.20739502]
[1750941295741,0.04,143.41,143.4,25.62314955]
[1750941297618,0.04,143.41,143.4,34.34955659]
[1750941298929,0.04,143.41,143.4,35.92715659]
[1750941300436,0.04,143.41,143.4,20.22724886]
[1750941300629,0.04,143.41,143.4,18.64964886]
[1750941305118,0.04,143.41,143.4,25.62314955]
[1750941305320,0.04,143.41,143.4,35.04690665]
[1750941306143,0.04,143.41,143.4,25.62314955]